Workbook

Sheet Лист1
A1: МЕНЮ
A2: 1 ДЕНЬ
A3: ЗАВТРАК | B3: 10
A4: НАИМЕНОВАНИЕ БЛЮДА | B4: выход | C4: рис | D4: соль | E4: с/м | F4: сахар | G4: молоко | H4: хлеб пшеничный | I4: творог | J4: сметана | K4: сыр | L4: чай | M4: манка | N4: капуста | O4: морковь | P4: лук | Q4: п/м | R4: курица | S4: гречка | T4: банан | U4: рыба | V4: сосиска | W4: с/ф | X4: хлеб ржаной | Y4: сок | Z4: выпечка договор | AA4: яблоко | AB4: пшено | AC4: горох | AD4: картофель | AE4: макароны | AF4: говядина | AG4: яйцо | AH4: груша | AI4: солянка | AJ4: кр.пшеничная | AK4: апельсин | AL4: свекла банка | AM4: кекс
A5: Каша рисовая молочная с/м | B5: 150 | C5: 0.045 | D5: 0.005 | E5: 0.005 | F5: 0.005 | G5: 0.1
A6: Чай с сахаром | B6: 200 | F6: 0.02 | L6: 0.002
A7: Хлеб пшеничный с маслом и сыром | B7: 165 | E7: 0.005 | H7: 0.15 | K7: 0.01
A8: ВЫХОД | B8: =SUM(B5:B7) -> 515
A9: ОБЕД
A10: Суп щи с курицей | B10: 250 | D10: 0.002 | N10: 0.1 | O10: 0.01 | P10: 0.01 | Q10: 0.005 | R10: 0.1 | AD10: 0.07
A11: Гречка отварная рассыпчатая | B11: 150 | D11: 0.002 | E11: 0.01 | S11: 0.047
A12: Сосиска отварная | B12: 50 | V12: 0.05
A13: Салат Солянка | B13: 60 | AI13: 0.065
A14: Компот из сухофруктов | B14: 200 | F14: 0.02 | W14: 0.02
A15: Хлеб ржаной | B15: 80 | X15: 0.08
A16: ВЫХОД | B16: =SUM(B10:B15) -> 790
A17: ПОЛДНИК
A18: Сок | B18: 200 | Y18: 0.2
A19: кекс | B19: 75 | AM19: 0.075
A20: Яблоко | B20: 200 | AA20: 0.2
A21: ВЫХОД | B21: =SUM(B18:B20) -> 475
A22: цена
A23: сумма на одного ученика | C23: =SUM(C26*C22) -> 0 | D23: =SUM(D22*D26) -> 0 | E23: =SUM(E22*E26) -> 0 | F23: 0 | G23: 0 | H23: 0 | I23: 0 | J23: 0 | K23: 0 | L23: 0 | M23: 0 | N23: 0 | O23: 0 | P23: 0 | Q23: 0 | R23: 0 | S23: 0 | T23: 0 | U23: =SUM(U22*U26) -> 0 | V23: 0 | W23: 0 | X23: 0 | Y23: 0 | Z23: 0 | AA23: 0 | AB23: 0 | AC23: 0 | AD23: 0 | AE23: 0 | AF23: 0 | AG23: 0 | AH23: 0 | AI23: 0 | AJ23: 0 | AK23: =SUM(AK22*AK26) -> 0 | AL23: =SUM(AL22*AL26) -> 0 | AM23: 0
A24: сумма + кол.во детей | C24: =SUM(C23*65) -> 0 | D24: =SUM(D23*65) -> 0 | E24: 0 | F24: 0 | G24: 0 | H24: 0 | I24: 0 | J24: 0 | K24: 0 | L24: 0 | M24: 0 | N24: 0 | O24: 0 | P24: 0 | Q24: 0 | R24: 0 | S24: 0 | T24: 0 | U24: 0 | V24: 0 | W24: 0 | X24: 0 | Y24: 0 | Z24: 0 | AA24: 0 | AB24: 0 | AC24: 0 | AD24: 0 | AE24: 0 | AF24: 0 | AG24: 0 | AH24: 0 | AI24: 0 | AJ24: 0 | AK24: 0 | AL24: 0 | AM24: 0 | AN24: =SUM(C24:AM24) -> 0
A25: кол.во продуктов | C25: =SUM(C26*65) -> 2.925 | D25: =SUM(D26*65) -> 0.585 | E25: 1.3 | F25: 2.925 | G25: 6.5 | H25: 9.75 | I25: 0 | J25: 0 | K25: 0.65 | L25: 0.13 | M25: 0 | N25: 6.5 | O25: 0.65 | P25: 0.65 | Q25: 0.325 | R25: 6.5 | S25: 3.055 | T25: 0 | U25: 0 | V25: 3.25 | W25: 1.3 | X25: 5.2 | Y25: 13 | Z25: 0 | AA25: 13 | AB25: 0 | AC25: 0 | AD25: 4.55 | AE25: 0 | AF25: 0 | AG25: 0 | AH25: 0 | AI25: =SUM(AI26*65) -> 4.225 | AJ25: 0 | AK25: 0 | AL25: 0 | AM25: 4.875
A26: ИТОГО ВЫХОД | B26: =SUM(B8+B16+B21) -> 1780 | C26: =SUM(C5:C20) -> 0.045 | D26: =SUM(D5:D20) -> 0.009 | E26: 0.02 | F26: 0.045 | G26: 0.1 | H26: 0.15 | I26: 0 | J26: 0 | K26: 0.01 | L26: 0.002 | M26: 0 | N26: 0.1 | O26: 0.01 | P26: 0.01 | Q26: 0.005 | R26: 0.1 | S26: 0.047 | T26: 0 | U26: 0 | V26: 0.05 | W26: 0.02 | X26: 0.08 | Y26: 0.2 | Z26: 0 | AA26: 0.2 | AB26: 0 | AC26: 0 | AD26: 0.07 | AE26: 0 | AF26: 0 | AG26: 0 | AH26: 0 | AI26: 0.065 | AJ26: 0 | AK26: 0 | AL26: 0 | AM26: 0.075
A27: 2 ДЕНЬ
A28: ЗАВТРАК | B28: выход | C28: рис | D28: соль | E28: с/м | F28: сахар | G28: молоко | H28: хлеб пшеничный | I28: творог | J28: сметана | K28: сыр | L28: чай | M28: манка | N28: капуста | O28: морковь | P28: лук | Q28: п/м | R28: курица | S28: гречка | T28: банан | U28: рыба | V28: сосиска | W28: с/ф | X28: хлеб ржаной | Y28: сок | Z28: выпечка договор | AA28: яблоко | AB28: пшено | AC28: горох | AD28: картофель | AE28: макароны | AF28: говядина | AG28: яйцо | AH28: груша | AI28: солянка | AJ28: кр.пшеничная | AK28: апельсин | AL28: свекла банка | AM28: кекс
A29: Каша пшенная молочная с/м | B29: 150 | D29: 0.002 | E29: 0.005 | F29: 0.005 | G29: 0.1 | AB29: 0.045
A30: Чай с сахаром | B30: 200 | F30: 0.02 | L30: 0.002
A31: Творог со сметаной | B31: 60 | F31: 0.005 | I31: 0.05 | J31: 0.005
A32: Хлеб пшеничная | B32: 150 | H32: 0.15
A33: ВЫХОД | B33: =SUM(B29:B32) -> 560
A34: ОБЕД
A35: Суп гороховый с курицей | B35: 250 | D35: 0.002 | O35: 0.01 | P35: 0.01 | Q35: 0.005 | R35: 0.1 | AC35: 0.05 | AD35: 0.07
A36: Макароны отварные | B36: 150 | D36: 0.005 | E36: 0.01 | AE36: 0.055
A37: Котлеты из говядины | B37: 80 | D37: 0.002 | H37: 0.01 | P37: 0.015 | Q37: 0.005 | AF37: 0.123 | AG37: 0.005
A38: Салат из капусты | B38: 60 | D38: 0.001 | F38: 0.005 | N38: 0.094 | O38: 0.008 | Q38: 0.01
A39: Компот из сухофруктов | B39: 200 | F39: 0.02 | W39: 0.02
A40: Хлеб ржаной | B40: 80 | X40: 0.08
A41: ВЫХОД | B41: =SUM(B35:B40) -> 820
A42: ПОЛДНИК
A43: Сок | B43: 200 | Y43: 0.2
A44: Выпечка договор | B44: 75 | Z44: 1
A45: Груша | B45: 200 | AH45: 0.2
A46: ВЫХОД | B46: =SUM(B43:B45) -> 475
A47: цена
A48: сумма | C48: =SUM(C47*C51) -> 0 | D48: =SUM(D47*D51) -> 0 | E48: 0 | F48: 0 | G48: 0 | H48: 0 | I48: 0 | J48: 0 | K48: 0 | L48: 0 | M48: =SUM(M47*M51) -> 0 | N48: 0 | O48: 0 | P48: 0 | Q48: 0 | R48: 0 | S48: 0 | T48: 0 | U48: =SUM(U47*U51) -> 0 | V48: 0 | W48: 0 | X48: 0 | Y48: 0 | Z48: 0 | AA48: 0 | AB48: 0 | AC48: 0 | AD48: 0 | AE48: 0 | AF48: 0 | AG48: 0 | AH48: 0 | AI48: 0 | AJ48: 0 | AK48: =SUM(AK47*AK51) -> 0 | AL48: 0 | AM48: 0
A49: сумма + кол.во детей | C49: =SUM(C48*65) -> 0 | D49: =SUM(D48*65) -> 0 | E49: 0 | F49: 0 | G49: 0 | H49: 0 | I49: 0 | J49: 0 | K49: 0 | L49: 0 | M49: 0 | N49: 0 | O49: 0 | P49: 0 | Q49: 0 | R49: 0 | S49: 0 | T49: 0 | U49: 0 | V49: 0 | W49: 0 | X49: 0 | Y49: 0 | Z49: 0 | AA49: 0 | AB49: 0 | AC49: 0 | AD49: 0 | AE49: 0 | AF49: 0 | AG49: 0 | AH49: 0 | AI49: 0 | AJ49: 0 | AK49: 0 | AL49: 0 | AM49: 0 | AN49: =SUM(C49:AM49) -> 0
A50: кол.во продуктов | C50: =SUM(C51*65) -> 0 | D50: =SUM(D51*65) -> 0.78 | E50: 0.975 | F50: 3.575 | G50: 6.5 | H50: 10.4 | I50: 3.25 | J50: 0.325 | K50: 0 | L50: 0.13 | M50: 0 | N50: 6.11 | O50: 1.17 | P50: 1.625 | Q50: 1.3 | R50: 6.5 | S50: 0 | T50: 0 | U50: 0 | V50: 0 | W50: 1.3 | X50: 5.2 | Y50: 13 | Z50: 65 | AA50: 0 | AB50: 2.925 | AC50: 3.25 | AD50: 4.55 | AE50: 3.575 | AF50: 7.995 | AG50: 0.325 | AH50: 13 | AI50: 0 | AJ50: 0 | AK50: 0 | AL50: 0 | AM50: 0
A51: ИТОГО ВЫХОД | B51: =SUM(B33+B41+B46) -> 1855 | C51: =SUM(C29:C45) -> 0 | D51: 0.012 | E51: 0.015 | F51: 0.055 | G51: 0.1 | H51: 0.16 | I51: 0.05 | J51: 0.005 | K51: 0 | L51: 0.002 | M51: 0 | N51: 0.094 | O51: 0.018 | P51: 0.025 | Q51: 0.02 | R51: 0.1 | S51: 0 | T51: 0 | U51: 0 | V51: 0 | W51: 0.02 | X51: 0.08 | Y51: 0.2 | Z51: 1 | AA51: 0 | AB51: 0.045 | AC51: 0.05 | AD51: 0.07 | AE51: 0.055 | AF51: 0.123 | AG51: 0.005 | AH51: 0.2 | AI51: 0 | AJ51: 0 | AK51: 0 | AL51: =SUM(AL29:AL45) -> 0 | AM51: 0
A52: 3 ДЕНЬ
A53: ЗАВТРАК | B53: выход | C53: рис | D53: соль | E53: с/м | F53: сахар | G53: молоко | H53: хлеб пшеничный | I53: творог | J53: сметана | K53: сыр | L53: чай | M53: манка | N53: капуста | O53: морковь | P53: лук | Q53: п/м | R53: курица | S53: гречка | T53: банан | U53: рыба | V53: сосиска | W53: с/ф | X53: хлеб ржаной | Y53: сок | Z53: выпечка договор | AA53: яблоко | AB53: пшено | AC53: горох | AD53: картофель | AE53: макароны | AF53: говядина | AG53: яйцо | AH53: груша | AI53: солянка | AJ53: кр.пшеничная | AK53: апельсин | AL53: свекла банка | AM53: кекс
A54: Каша гречневая молочная с/м | B54: 150 | D54: 0.002 | E54: 0.005 | F54: 0.005 | G54: 0.1 | S54: 0.045
A55: Чай с сахаром | B55: 200 | F55: 0.02 | L55: 0.002
A56: Хлеб с маслом и сыром | B56: 165 | E56: 0.005 | H56: 0.15 | K56: 0.01
A57: ВЫХОД | B57: =SUM(B54:B56) -> 515
A58: ОБЕД
A59: Суп борщ на м/к бульоне с мясом | B59: 250 | D59: 0.002 | N59: 0.078 | O59: 0.01 | P59: 0.01 | Q59: 0.005 | AD59: 0.07 | AF59: 0.047 | AL59: 0.035
A60: Плов с курицей | B60: 200 | C60: 0.05 | D60: 0.005 | O60: 0.02 | P60: 0.02 | Q60: 0.005 | R60: 0.087
A61: Салат морковный | B61: 60 | F61: 0.005 | O61: 0.088 | Q61: 0.01
A62: Компот из сухофруктов | B62: 200 | F62: 0.02 | W62: 0.02
A63: Хлеб ржаной | B63: 80 | X63: 0.08
A64: ВЫХОД | B64: =SUM(B59:B63) -> 790
A65: ПОЛДНИК
A66: Сок | B66: 200 | Y66: 0.2
A67: Выпечка договор | B67: 75 | Z67: 1
A68: Банан | B68: 200 | T68: 0.2
A69: ВЫХОД | B69: =SUM(B66:B68) -> 475
A70: цена
A71: сумма | C71: =SUM(C70*C74) -> 0 | D71: =SUM(D70*D74) -> 0 | E71: 0 | F71: 0 | G71: 0 | H71: 0 | I71: 0 | J71: 0 | K71: 0 | L71: 0 | M71: =SUM(M70*M74) -> 0 | N71: 0 | O71: 0 | P71: 0 | Q71: 0 | R71: 0 | S71: 0 | T71: =SUM(T70*T74) -> 0 | U71: =SUM(U70*U74) -> 0 | V71: 0 | W71: 0 | X71: 0 | Y71: 0 | Z71: 0 | AA71: 0 | AB71: 0 | AC71: 0 | AD71: 0 | AE71: 0 | AF71: 0 | AG71: 0 | AH71: 0 | AI71: 0 | AJ71: 0 | AK71: =SUM(AK70*AK74) -> 0 | AL71: 0 | AM71: 0
A72: сумма + кол.во детей | C72: =SUM(C71*65) -> 0 | D72: =SUM(D71*65) -> 0 | E72: 0 | F72: 0 | G72: 0 | H72: 0 | I72: 0 | J72: 0 | K72: 0 | L72: 0 | M72: =SUM(M71*65) -> 0 | N72: 0 | O72: 0 | P72: 0 | Q72: 0 | R72: 0 | S72: 0 | T72: =SUM(T71*65) -> 0 | U72: =SUM(U71*65) -> 0 | V72: 0 | W72: 0 | X72: 0 | Y72: 0 | Z72: 0 | AA72: 0 | AB72: 0 | AC72: 0 | AD72: 0 | AE72: 0 | AF72: 0 | AG72: 0 | AH72: 0 | AI72: 0 | AJ72: 0 | AK72: =SUM(AK71*65) -> 0 | AL72: 0 | AM72: 0 | AN72: =SUM(C72:AM72) -> 0
A73: кол.во продуктов | C73: =SUM(C74*65) -> 3.25 | D73: =SUM(D74*65) -> 0.585 | E73: 0.65 | F73: 3.25 | G73: 6.5 | H73: 9.75 | I73: 0 | J73: 0 | K73: 0.65 | L73: 0.13 | M73: 0 | N73: 5.07 | O73: 7.67 | P73: 1.95 | Q73: 1.3 | R73: 5.655 | S73: 2.925 | T73: 13 | U73: 0 | V73: 0 | W73: 1.3 | X73: 5.2 | Y73: 13 | Z73: 65 | AA73: 0 | AB73: 0 | AC73: 0 | AD73: 4.55 | AE73: 0 | AF73: 3.055 | AG73: 0 | AH73: 0 | AI73: 0 | AJ73: 0 | AK73: 0 | AL73: 2.275 | AM73: 0
A74: ИТОГО ВЫХОД | B74: =SUM(B57+B64+B69) -> 1780 | C74: =SUM(C54:C68) -> 0.05 | D74: 0.009 | E74: 0.01 | F74: 0.05 | G74: 0.1 | H74: 0.15 | I74: 0 | J74: 0 | K74: 0.01 | L74: 0.002 | M74: =SUM(M54:M68) -> 0 | N74: 0.078 | O74: 0.118 | P74: 0.03 | Q74: 0.02 | R74: 0.087 | S74: 0.045 | T74: =SUM(T54:T68) -> 0.2 | U74: =SUM(U54:U68) -> 0 | V74: 0 | W74: 0.02 | X74: 0.08 | Y74: 0.2 | Z74: 1 | AA74: 0 | AB74: 0 | AC74: 0 | AD74: 0.07 | AE74: 0 | AF74: 0.047 | AG74: 0 | AH74: 0 | AI74: 0 | AJ74: 0 | AK74: =SUM(AK54:AK68) -> 0 | AL74: 0.035 | AM74: 0
A75: 4 ДЕНЬ
A76: ЗАВТРАК | B76: выход | C76: рис | D76: соль | E76: с/м | F76: сахар | G76: молоко | H76: хлеб пшеничный | I76: творог | J76: сметана | K76: сыр | L76: чай | M76: манка | N76: капуста | O76: морковь | P76: лук | Q76: п/м | R76: курица | S76: гречка | T76: банан | U76: рыба | V76: сосиска | W76: с/ф | X76: хлеб ржаной | Y76: сок | Z76: выпечка договор | AA76: яблоко | AB76: пшено | AC76: горох | AD76: картофель | AE76: макароны | AF76: говядина | AG76: яйцо | AH76: груша | AI76: солянка | AJ76: кр.пшеничная | AK76: апельсин | AL76: свекла банка | AM76: кекс
A77: Каша дружба с/м (рис+пшено) | B77: 150 | C77: 0.02 | D77: 0.005 | E77: 0.005 | F77: 0.005 | G77: 0.1 | AB77: 0.025
A78: Чай с сахаром | B78: 200 | F78: 0.02 | L78: 0.002
A79: Хлеб пшеничный с маслом и сыром | B79: 165 | E79: 0.005 | H79: 0.15 | K79: 0.01
A80: ВЫХОД | B80: =SUM(B77:B79) -> 515
A81: ОБЕД
A82: Суп вермешелевый на м/к бульоне с мясом | B82: 250 | D82: 0.002 | O82: 0.01 | P82: 0.01 | Q82: 0.005 | AD82: 0.07 | AE82: 0.025 | AF82: 0.047
A83: Картофель отварной с/м | B83: 150 | D83: 0.002 | E83: 0.01 | AD83: 0.189
A84: Сосиска отварная | B84: 100 | V84: 0.1
A85: капуста тушеная | B85: 60 | D85: 0.001 | N85: 0.1433 | O85: 0.01 | P85: 0.01 | Q85: 0.005
A86: Компот из сухофруктов | B86: 200 | F86: 0.02 | W86: 0.02
A87: Хлеб ржаной | B87: 80 | X87: 0.08
A88: ВЫХОД | B88: =SUM(B82:B87) -> 840
A89: ПОЛДНИК
A90: сок | B90: 200 | Y90: 0.2
A91: Яблоко | B91: 200 | AA91: 0.2
A92: Выпечка договор | B92: 75 | Z92: 1
A93: ВЫХОД | B93: =SUM(B90:B92) -> 475
A94: цена
C95: =SUM(C94*C98) -> 0 | D95: =SUM(D94*D98) -> 0 | E95: 0 | F95: 0 | G95: 0 | H95: 0 | I95: 0 | J95: 0 | K95: 0 | L95: 0 | M95: =SUM(M94*M98) -> 0 | N95: 0 | O95: 0 | P95: 0 | Q95: 0 | R95: 0 | S95: 0 | T95: =SUM(T94*T98) -> 0 | U95: =SUM(U94*U98) -> 0 | V95: 0 | W95: 0 | X95: 0 | Y95: 0 | Z95: 0 | AA95: 0 | AB95: 0 | AC95: 0 | AD95: 0 | AE95: 0 | AF95: 0 | AG95: 0 | AH95: 0 | AI95: 0 | AJ95: 0 | AK95: =SUM(AK94*AK98) -> 0 | AL95: 0 | AM95: 0
C96: =SUM(C95*65) -> 0 | D96: =SUM(D95*65) -> 0 | E96: 0 | F96: 0 | G96: 0 | H96: 0 | I96: =SUM(I95*65) -> 0 | J96: 0 | K96: 0 | L96: 0 | M96: =SUM(M95*65) -> 0 | N96: 0 | O96: 0 | P96: 0 | Q96: 0 | R96: 0 | S96: 0 | T96: =SUM(T95*65) -> 0 | U96: =SUM(U95*65) -> 0 | V96: 0 | W96: 0 | X96: 0 | Y96: 0 | Z96: 0 | AA96: 0 | AB96: 0 | AC96: 0 | AD96: 0 | AE96: 0 | AF96: 0 | AG96: 0 | AH96: 0 | AI96: 0 | AJ96: 0 | AK96: =SUM(AK95*65) -> 0 | AL96: 0 | AM96: 0 | AN96: =SUM(C96:AM96) -> 0
A97: кол.во продуктов | C97: =SUM(C98*65) -> 1.3 | D97: =SUM(D98*65) -> 0.65 | E97: 1.3 | F97: 2.925 | G97: 6.5 | H97: 9.75 | I97: 0 | J97: 0 | K97: 0.65 | L97: 0.13 | M97: 0 | N97: 9.3145 | O97: 1.3 | P97: 1.3 | Q97: 0.65 | R97: 0 | S97: 0 | T97: 0 | U97: 0 | V97: 6.5 | W97: 1.3 | X97: 5.2 | Y97: 13 | Z97: 65 | AA97: 13 | AB97: 1.625 | AC97: 0 | AD97: 16.835 | AE97: 1.625 | AF97: 3.055 | AG97: 0 | AH97: 0 | AI97: 0 | AJ97: 0 | AK97: 0 | AL97: 0 | AM97: 0
A98: ИТОГО ВЫХОД | B98: =SUM(B80+B88+B93) -> 1830 | C98: =SUM(C77:C92) -> 0.02 | D98: 0.01 | E98: 0.02 | F98: 0.045 | G98: 0.1 | H98: 0.15 | I98: 0 | J98: 0 | K98: 0.01 | L98: 0.002 | M98: =SUM(M77:M92) -> 0 | N98: 0.1433 | O98: 0.02 | P98: 0.02 | Q98: 0.01 | R98: 0 | S98: 0 | T98: =SUM(T77:T92) -> 0 | U98: =SUM(U77:U92) -> 0 | V98: 0.1 | W98: 0.02 | X98: 0.08 | Y98: 0.2 | Z98: 1 | AA98: 0.2 | AB98: 0.025 | AC98: 0 | AD98: 0.259 | AE98: 0.025 | AF98: 0.047 | AG98: 0 | AH98: 0 | AI98: 0 | AJ98: 0 | AK98: =SUM(AK77:AK92) -> 0 | AL98: 0 | AM98: 0
A99: 5 ДЕНЬ
A100: ЗАВТРАК | B100: выход | C100: рис | D100: соль | E100: с/м | F100: сахар | G100: молоко | H100: хлеб пшеничный | I100: творог | J100: сметана | K100: сыр | L100: чай | M100: манка | N100: капуста | O100: морковь | P100: лук | Q100: п/м | R100: курица | S100: гречка | T100: банан | U100: рыба | V100: сосиска | W100: с/ф | X100: хлеб ржаной | Y100: сок | Z100: выпечка договор | AA100: яблоко | AB100: пшено | AC100: горох | AD100: картофель | AE100: макароны | AF100: говядина | AG100: яйцо | AH100: груша | AI100: солянка | AJ100: кр.пшеничная | AK100: апельсин | AL100: свекла банка | AM100: кекс
A101: Каша пшеничная молочная с/м | B101: 150 | D101: 0.002 | E101: 0.005 | F101: 0.005 | G101: 0.1 | AJ101: 0.045
A102: Творог со сметаной | B102: 60 | F102: 0.005 | I102: 0.05 | J102: 0.005
A103: Чай с сахаром | B103: 200 | F103: 0.02 | L103: 0.002
A104: Хлеб | B104: 150 | H104: 0.15
A105: ВЫХОД | B105: =SUM(B101:B104) -> 560
A106: ОБЕД
A107: Суп рисовый на м/к бульоне с мясом | B107: 250 | C107: 0.025 | D107: 0.002 | O107: 0.01 | P107: 0.01 | Q107: 0.005 | AD107: 0.07 | AF107: 0.047
A108: Макароны отварные | B108: 150 | D108: 0.005 | E108: 0.01 | AE108: 0.055
A109: Курица отварная | B109: 80 | D109: 0.001 | Q109: 0.005 | R109: 0.127
A110: Салат Солянка | B110: 60 | AI110: 0.065
A111: Компот из сухофруктов | B111: 200 | F111: 0.02 | W111: 0.02
A112: Хлеб ржаной | B112: 80 | X112: 0.08
A113: ВЫХОД | B113: =SUM(B107:B112) -> 820
A114: ПОЛДНИК
A115: сок | B115: 200 | Y115: 0.2
A116: Груша | B116: 200 | AH116: 0.2
A117: Выпечка договор | B117: 75 | Z117: 1
A118: ВЫХОД | B118: =SUM(B115:B117) -> 475
A119: цена
A120: сумма | C120: =SUM(C119*C123) -> 0 | D120: =SUM(D119*D123) -> 0 | E120: 0 | F120: 0 | G120: 0 | H120: 0 | I120: 0 | J120: 0 | K120: 0 | L120: 0 | M120: =SUM(M119*M123) -> 0 | N120: 0 | O120: 0 | P120: 0 | Q120: 0 | R120: 0 | S120: 0 | T120: =SUM(T119*T123) -> 0 | U120: =SUM(U119*U123) -> 0 | V120: 0 | W120: 0 | X120: 0 | Y120: 0 | Z120: 0 | AA120: 0 | AB120: 0 | AC120: 0 | AD120: 0 | AE120: 0 | AF120: 0 | AG120: 0 | AH120: 0 | AI120: 0 | AJ120: 0 | AK120: =SUM(AK119*AK123) -> 0 | AL120: 0 | AM120: 0
A121: сумма + кол.во детей | C121: =SUM(C120*65) -> 0 | D121: =SUM(D120*65) -> 0 | E121: 0 | F121: 0 | G121: 0 | H121: 0 | I121: 0 | J121: 0 | K121: 0 | L121: 0 | M121: =SUM(M120*65) -> 0 | N121: 0 | O121: 0 | P121: 0 | Q121: 0 | R121: 0 | S121: 0 | T121: =SUM(T120*65) -> 0 | U121: =SUM(U120*65) -> 0 | V121: 0 | W121: 0 | X121: 0 | Y121: 0 | Z121: 0 | AA121: 0 | AB121: 0 | AC121: 0 | AD121: 0 | AE121: 0 | AF121: 0 | AG121: 0 | AH121: 0 | AI121: 0 | AJ121: 0 | AK121: =SUM(AK120*65) -> 0 | AL121: 0 | AM121: 0 | AN121: =SUM(C121:AM121) -> 0
A122: кол.во продуктов | C122: =SUM(C123*65) -> 1.625 | D122: =SUM(D123*65) -> 0.65 | E122: 0.975 | F122: 3.25 | G122: 6.5 | H122: 9.75 | I122: 3.25 | J122: 0.325 | K122: 0 | L122: 0.13 | M122: 0 | N122: 0 | O122: 0.65 | P122: 0.65 | Q122: 0.65 | R122: 8.255 | S122: 0 | T122: 0 | U122: 0 | V122: 0 | W122: 1.3 | X122: 5.2 | Y122: 13 | Z122: 65 | AA122: 0 | AB122: 0 | AC122: 0 | AD122: 4.55 | AE122: 3.575 | AF122: 3.055 | AG122: 0 | AH122: 13 | AI122: 4.225 | AJ122: 2.925 | AK122: 0 | AL122: 0 | AM122: 0
A123: ИТОГО ВЫХОД | B123: =SUM(B105+B113+B118) -> 1855 | C123: =SUM(C101:C117) -> 0.025 | D123: 0.01 | E123: 0.015 | F123: 0.05 | G123: 0.1 | H123: 0.15 | I123: 0.05 | J123: 0.005 | K123: 0 | L123: 0.002 | M123: =SUM(M101:M117) -> 0 | N123: 0 | O123: 0.01 | P123: 0.01 | Q123: 0.01 | R123: 0.127 | S123: 0 | T123: =SUM(T101:T117) -> 0 | U123: =SUM(U101:U117) -> 0 | V123: 0 | W123: 0.02 | X123: 0.08 | Y123: 0.2 | Z123: 1 | AA123: 0 | AB123: 0 | AC123: 0 | AD123: 0.07 | AE123: 0.055 | AF123: 0.047 | AG123: 0 | AH123: 0.2 | AI123: 0.065 | AJ123: 0.045 | AK123: =SUM(AK101:AK117) -> 0 | AL123: 0 | AM123: 0
A124: 6 ДЕНЬ
A125: ЗАВТРАК | B125: выход | C125: рис | D125: соль | E125: с/м | F125: сахар | G125: молоко | H125: хлеб пшеничный | I125: творог | J125: сметана | K125: сыр | L125: чай | M125: манка | N125: капуста | O125: морковь | P125: лук | Q125: п/м | R125: курица | S125: гречка | T125: банан | U125: рыба | V125: сосиска | W125: с/ф | X125: хлеб ржаной | Y125: сок | Z125: коржик | AA125: яблоко | AB125: пшено | AC125: горох | AD125: картофель | AE125: макароны | AF125: говядина | AG125: яйцо | AH125: груша | AI125: солянка | AJ125: кр.пшеничная | AK125: апельсин | AL125: свекла банка | AM125: кекс
A126: Каша дружба с/м (рис+гречка) | B126: 150 | C126: 0.02 | D126: 0.005 | E126: 0.005 | F126: 0.005 | G126: 0.1 | S126: 0.025
A127: Чай с сахаром | B127: 200 | F127: 0.02 | L127: 0.002
A128: Хлеб пшеничный с маслом и сыром | B128: 165 | E128: 0.005 | H128: 0.15 | K128: 0.01
A129: ВЫХОД | B129: =SUM(B126:B128) -> 515
A130: ОБЕД
A131: Суп борщ на м/к бульоне с мясом | B131: 250 | D131: 0.002 | N131: 0.078 | O131: 0.01 | P131: 0.01 | Q131: 0.005 | AD131: 0.07 | AF131: 0.047 | AL131: 0.035
A132: Картофель отварной с/м | B132: 150 | D132: 0.002 | E132: 0.01 | AD132: 0.189
A133: Котлеты из говядины | B133: 80 | D133: 0.002 | H133: 0.01 | P133: 0.015 | Q133: 0.005 | AF133: 0.123 | AG133: 0.005
A134: Салат морковный | B134: 60 | F134: 0.002 | O134: 0.088 | Q134: 0.01
A135: Компот из сухофруктов | B135: 200 | F135: 0.02 | W135: 0.02
A136: Хлеб ржаной | B136: 80 | X136: 0.08
A137: ВЫХОД | B137: =SUM(B131:B136) -> 820
A138: ПОЛДНИК
A139: сок | B139: 200 | Y139: 0.2
A140: Яблоко | B140: 200 | AA140: 0.2
A141: Выпечка договор | B141: 75 | Z141: 1
A142: ВЫХОД | B142: =SUM(B139:B141) -> 475
A143: цена
A144: сумма | C144: =SUM(C143*C147) -> 0 | D144: =SUM(D143*D147) -> 0 | E144: 0 | F144: 0 | G144: 0 | H144: 0 | I144: 0 | J144: 0 | K144: 0 | L144: 0 | M144: 0 | N144: 0 | O144: 0 | P144: 0 | Q144: 0 | R144: 0 | S144: 0 | T144: =SUM(T143*T147) -> 0 | U144: 0 | V144: 0 | W144: 0 | X144: 0 | Y144: 0 | Z144: 0 | AA144: 0 | AB144: 0 | AC144: 0 | AD144: 0 | AE144: 0 | AF144: 0 | AG144: 0 | AH144: 0 | AI144: 0 | AJ144: 0 | AK144: =SUM(AK143*AK147) -> 0 | AL144: 0 | AM144: 0
A145: сумма + кол.во детей | C145: =SUM(C144*65) -> 0 | D145: =SUM(D144*65) -> 0 | E145: 0 | F145: 0 | G145: 0 | H145: 0 | I145: 0 | J145: 0 | K145: 0 | L145: 0 | M145: 0 | N145: 0 | O145: 0 | P145: 0 | Q145: 0 | R145: 0 | S145: 0 | T145: =SUM(T144*65) -> 0 | U145: 0 | V145: 0 | W145: 0 | X145: 0 | Y145: 0 | Z145: 0 | AA145: 0 | AB145: 0 | AC145: 0 | AD145: 0 | AE145: 0 | AF145: 0 | AG145: =SUM(AG144*65) -> 0 | AH145: 0 | AI145: 0 | AJ145: 0 | AK145: =SUM(AK144*65) -> 0 | AL145: 0 | AM145: 0 | AN145: =SUM(C145:AM145) -> 0
A146: кол.во продуктов | C146: =SUM(C147*65) -> 1.3 | D146: =SUM(D147*65) -> 0.715 | E146: 1.3 | F146: 3.055 | G146: 6.5 | H146: 10.4 | I146: 0 | J146: 0 | K146: 0.65 | L146: 0.13 | M146: 0 | N146: 5.07 | O146: 6.37 | P146: 1.625 | Q146: 1.3 | R146: 0 | S146: 1.625 | T146: 0 | U146: 0 | V146: 0 | W146: 1.3 | X146: 5.2 | Y146: 13 | Z146: 65 | AA146: 13 | AB146: 0 | AC146: 0 | AD146: 16.835 | AE146: 0 | AF146: 11.05 | AG146: 0.325 | AH146: 0 | AI146: 0 | AJ146: 0 | AK146: 0 | AL146: 2.275 | AM146: 0
A147: ИТОГО ВЫХОД | B147: =SUM(B129+B137+B142) -> 1810 | C147: =SUM(C126:C141) -> 0.02 | D147: 0.011 | E147: 0.02 | F147: 0.047 | G147: 0.1 | H147: 0.16 | I147: 0 | J147: 0 | K147: 0.01 | L147: 0.002 | M147: 0 | N147: 0.078 | O147: 0.098 | P147: 0.025 | Q147: 0.02 | R147: 0 | S147: 0.025 | T147: =SUM(T126:T141) -> 0 | U147: 0 | V147: 0 | W147: 0.02 | X147: 0.08 | Y147: 0.2 | Z147: 1 | AA147: 0.2 | AB147: 0 | AC147: 0 | AD147: 0.259 | AE147: 0 | AF147: 0.17 | AG147: 0.005 | AH147: 0 | AI147: 0 | AJ147: 0 | AK147: =SUM(AK126:AK141) -> 0 | AL147: 0.035 | AM147: 0
A148: 7 ДЕНЬ
A149: ЗАВТРАК | B149: выход | C149: рис | D149: соль | E149: с/м | F149: сахар | G149: молоко | H149: хлеб пшеничный | I149: творог | J149: сметана | K149: сыр | L149: чай | M149: манка | N149: капуста | O149: морковь | P149: лук | Q149: п/м | R149: курица | S149: гречка | T149: банан | U149: рыба | V149: сосиска | W149: с/ф | X149: хлеб ржаной | Y149: сок | Z149: выпечка договор | AA149: яблоко | AB149: пшено | AC149: горох | AD149: картофель | AE149: макароны | AF149: говядина | AG149: яйцо | AH149: груша | AI149: солянка | AJ149: кр.пшеничная | AK149: апельсин | AL149: свекла банка | AM149: кекс
A150: Каша пшенная молочная с/м | B150: 150 | D150: 0.002 | E150: 0.005 | F150: 0.005 | G150: 0.1 | AB150: 0.045
A151: Чай с сахаром | B151: 200 | F151: 0.02 | L151: 0.002
A152: Хлеб пшеничный с маслом и сыром | B152: 165 | E152: 0.005 | H152: 0.15 | K152: 0.01
A153: ВЫХОД | B153: =SUM(B150:B152) -> 515
A154: ОБЕД
A155: Суп гороховый с курицей | B155: 250 | D155: 0.002 | O155: 0.01 | P155: 0.01 | Q155: 0.005 | R155: 0.1 | AB155: , | AC155: 0.05 | AD155: 0.07
A156: Каша гречневая молочная с/м | B156: 150 | D156: 0.002 | E156: 0.01 | S156: 0.047
A157: рыба тушеная с овощами | B157: 100 | D157: 0.002 | O157: 0.02 | P157: 0.02 | Q157: 0.005 | U157: 0.127
A158: салат из св.капусты | B158: 60 | D158: 0.001 | F158: 0.002 | N158: 0.094 | O158: 0.008 | Q158: 0.01
A159: Компот из сухофруктов | B159: 200 | F159: 0.02 | W159: 0.02
A160: Хлеб ржаной | B160: 80 | X160: 0.08
A161: ВЫХОД | B161: =SUM(B155:B160) -> 840
A162: ПОЛДНИК
A163: сок | B163: 200 | Y163: 0.2
A164: Банан | B164: 200 | T164: 0.2
A165: Кекс | B165: 75 | AM165: 0.075
A166: ВЫХОД | B166: =SUM(B163:B165) -> 475
A167: цена
A168: сумма | C168: =SUM(C167*C171) -> 0 | D168: =SUM(D167*D171) -> 0 | E168: 0 | F168: 0 | G168: 0 | H168: 0 | I168: 0 | J168: 0 | K168: 0 | L168: 0 | M168: 0 | N168: 0 | O168: 0 | P168: 0 | Q168: 0 | R168: 0 | S168: 0 | T168: =SUM(T167*T171) -> 0 | U168: 0 | V168: 0 | W168: 0 | X168: 0 | Y168: 0 | Z168: 0 | AA168: 0 | AB168: 0 | AC168: 0 | AD168: 0 | AE168: 0 | AF168: 0 | AG168: 0 | AH168: 0 | AI168: 0 | AJ168: 0 | AK168: =SUM(AK167*AK171) -> 0 | AL168: 0 | AM168: 0
A169: сумма + кол.во детей | C169: =SUM(C168*65) -> 0 | D169: =SUM(D168*65) -> 0 | E169: 0 | F169: 0 | G169: 0 | H169: 0 | I169: 0 | J169: 0 | K169: 0 | L169: 0 | M169: 0 | N169: 0 | O169: 0 | P169: 0 | Q169: 0 | R169: 0 | S169: 0 | T169: =SUM(T168*65) -> 0 | U169: 0 | V169: 0 | W169: 0 | X169: 0 | Y169: 0 | Z169: 0 | AA169: 0 | AB169: 0 | AC169: 0 | AD169: 0 | AE169: 0 | AF169: 0 | AG169: 0 | AH169: 0 | AI169: 0 | AJ169: 0 | AK169: =SUM(AK168*65) -> 0 | AL169: 0 | AM169: 0 | AN169: =SUM(C169:AM169) -> 0
A170: кол.во продуктов | C170: =SUM(C171*65) -> 0 | D170: =SUM(D171*65) -> 0.585 | E170: 1.3 | F170: 3.055 | G170: 6.5 | H170: 9.75 | I170: 0 | J170: 0 | K170: 0.65 | L170: 0.13 | M170: 0 | N170: 6.11 | O170: 2.47 | P170: 1.95 | Q170: 1.3 | R170: 6.5 | S170: 3.055 | T170: 13 | U170: 8.255 | V170: 0 | W170: 1.3 | X170: 5.2 | Y170: 13 | Z170: 0 | AA170: 0 | AB170: 2.925 | AC170: 3.25 | AD170: 4.55 | AE170: 0 | AF170: 0 | AG170: 0 | AH170: 0 | AI170: 0 | AJ170: 0 | AK170: 0 | AL170: 0 | AM170: 4.875
A171: ИТОГО ВЫХОД | B171: =SUM(B153+B161+B166) -> 1830 | C171: =SUM(C150:C165) -> 0 | D171: 0.009 | E171: 0.02 | F171: 0.047 | G171: 0.1 | H171: 0.15 | I171: 0 | J171: 0 | K171: 0.01 | L171: 0.002 | M171: 0 | N171: 0.094 | O171: 0.038 | P171: 0.03 | Q171: 0.02 | R171: 0.1 | S171: 0.047 | T171: =SUM(T150:T165) -> 0.2 | U171: 0.127 | V171: 0 | W171: 0.02 | X171: 0.08 | Y171: 0.2 | Z171: 0 | AA171: 0 | AB171: 0.045 | AC171: 0.05 | AD171: 0.07 | AE171: 0 | AF171: 0 | AG171: 0 | AH171: 0 | AI171: 0 | AJ171: 0 | AK171: =SUM(AK150:AK165) -> 0 | AL171: 0 | AM171: 0.075
A174: 8 ДЕНЬ
A175: ЗАВТРАК
A176: НАИМЕНОВАНИЕ БЛЮДА | B176: выход | C176: рис | D176: соль | E176: с/м | F176: сахар | G176: молоко | H176: хлеб пшеничный | I176: творог | J176: сметана | K176: сыр | L176: чай | M176: манка | N176: капуста | O176: морковь | P176: лук | Q176: п/м | R176: курица | S176: гречка | T176: банан | U176: рыба | V176: сосиска | W176: с/ф | X176: хлеб ржаной | Y176: сок | Z176: выпечка договор | AA176: яблоко | AB176: пшено | AC176: горох | AD176: картофель | AE176: макароны | AF176: говядина | AG176: яйцо | AH176: груша | AI176: солянка | AJ176: кр.пшеничная | AK176: апельсин | AL176: свекла банка | AM176: кекс
A177: Каша манная молочная с/м | B177: 150 | C177: 0.045 | D177: 0.005 | E177: 0.005 | F177: 0.005 | G177: 0.1 | M177: 0.045
A178: Чай с сахаром | B178: 200 | F178: 0.02 | L178: 0.002
A179: Хлеб пшеничный с маслом и сыром | B179: 165 | E179: 0.005 | H179: 0.15 | K179: 0.01
A180: ВЫХОД | B180: =SUM(B177:B179) -> 515
A181: ОБЕД
A182: Суп щи с мясом на м/к бульоне | B182: 250 | C182: 0.002 | N182: 0.1 | O182: 0.01 | P182: 0.01 | Q182: 0.005 | AD182: 0.07 | AF182: 0.055
A183: Рис отварной | B183: 150 | C183: 0.05 | D183: 0.005 | E183: 0.01
A184: курица отварная | B184: 80 | D184: 0.002 | Q184: 0.005 | R184: 0.102
A185: Салат солянка | B185: 60 | AI185: 0.065
A186: Компот из сухофруктов | B186: 200 | F186: 0.02 | W186: 0.02
A187: Хлеб ржаной | B187: 80 | X187: 0.08
A188: ВЫХОД | B188: =SUM(B182:B187) -> 820
A189: ПОЛДНИК
A190: Сок | B190: 200 | Y190: 0.2
A191: Выпечка договор | B191: 75 | Z191: 1
A192: апельсин | B192: 200 | AK192: 0.2
A193: ВЫХОД | B193: =SUM(B190:B192) -> 475
A194: цена
A195: сумма на одного ученика | C195: =SUM(C198*C194) -> 0 | D195: =SUM(D194*D198) -> 0 | E195: =SUM(E194*E198) -> 0 | F195: 0 | G195: 0 | H195: 0 | I195: 0 | J195: 0 | K195: 0 | L195: 0 | M195: 0 | N195: 0 | O195: 0 | P195: 0 | Q195: 0 | R195: 0 | S195: 0 | T195: =SUM(T194*T198) -> 0 | U195: 0 | V195: 0 | W195: 0 | X195: 0 | Y195: 0 | Z195: 0 | AA195: 0 | AB195: 0 | AC195: 0 | AD195: 0 | AE195: 0 | AF195: 0 | AG195: 0 | AH195: 0 | AI195: 0 | AJ195: 0 | AK195: =SUM(AK194*AK198) -> 0 | AL195: 0 | AM195: 0
A196: сумма + кол.во детей | C196: =SUM(C195*65) -> 0 | D196: =SUM(D195*65) -> 0 | E196: 0 | F196: 0 | G196: 0 | H196: 0 | I196: 0 | J196: 0 | K196: 0 | L196: 0 | M196: 0 | N196: 0 | O196: 0 | P196: 0 | Q196: 0 | R196: 0 | S196: 0 | T196: =SUM(T195*65) -> 0 | U196: 0 | V196: 0 | W196: 0 | X196: 0 | Y196: 0 | Z196: 0 | AA196: 0 | AB196: 0 | AC196: 0 | AD196: 0 | AE196: 0 | AF196: 0 | AG196: 0 | AH196: 0 | AI196: 0 | AJ196: 0 | AK196: =SUM(AK195*65) -> 0 | AL196: 0 | AM196: 0
A197: кол.во продуктов | C197: =SUM(C198*65) -> 6.305 | D197: =SUM(D198*65) -> 0.78 | E197: 1.3 | F197: 2.925 | G197: 6.5 | H197: =SUM(H198*65) -> 9.75 | I197: 0 | J197: 0 | K197: 0.65 | L197: 0.13 | M197: 2.925 | N197: 6.5 | O197: 0.65 | P197: 0.65 | Q197: 0.65 | R197: 6.63 | S197: 0 | T197: 0 | U197: 0 | V197: 0 | W197: 1.3 | X197: 5.2 | Y197: 13 | Z197: 65 | AA197: 0 | AB197: 0 | AC197: 0 | AD197: 4.55 | AE197: 0 | AF197: 3.575 | AG197: 0 | AH197: 0 | AI197: 4.225 | AJ197: 0 | AK197: 13 | AL197: 0 | AM197: 0
A198: ИТОГО ВЫХОД | B198: =SUM(B180+B188+B193) -> 1810 | C198: =SUM(C177:C192) -> 0.097 | D198: =SUM(D177:D192) -> 0.012 | E198: 0.02 | F198: 0.045 | G198: 0.1 | H198: =SUM(H177:H192) -> 0.15 | I198: =SUM(I177:I192) -> 0 | J198: 0 | K198: 0.01 | L198: 0.002 | M198: 0.045 | N198: 0.1 | O198: 0.01 | P198: 0.01 | Q198: 0.01 | R198: 0.102 | S198: 0 | T198: =SUM(T177:T192) -> 0 | U198: 0 | V198: 0 | W198: 0.02 | X198: 0.08 | Y198: 0.2 | Z198: 1 | AA198: 0 | AB198: 0 | AC198: 0 | AD198: 0.07 | AE198: 0 | AF198: 0.055 | AG198: 0 | AH198: 0 | AI198: 0.065 | AJ198: 0 | AK198: =SUM(AK177:AK192) -> 0.2 | AL198: 0 | AM198: 0
A199: 9 ДЕНЬ
A200: ЗАВТРАК | B200: выход | C200: рис | D200: соль | E200: с/м | F200: сахар | G200: молоко | H200: хлеб пшеничный | I200: творог | J200: сметана | K200: сыр | L200: чай | M200: манка | N200: капуста | O200: морковь | P200: лук | Q200: п/м | R200: курица | S200: гречка | T200: банан | U200: рыба | V200: сосиска | W200: с/ф | X200: хлеб ржаной | Y200: сок | Z200: выпечка договор | AA200: яблоко | AB200: пшено | AC200: горох | AD200: картофель | AE200: макароны | AF200: говядина | AG200: яйцо | AH200: груша | AI200: солянка | AJ200: кр.пшеничная | AK200: апельсин | AL200: свекла банка | AM200: кекс
A201: Каша пшеничная молочная с/м | B201: 150 | D201: 0.002 | E201: 0.005 | F201: 0.005 | G201: 0.1 | AJ201: 0.045
A202: Чай с сахаром | B202: 200 | F202: 0.02 | L202: 0.002
... 50 more rows

Sheet Лист2
B2: рис | C2: соль | D2: с/м | E2: сахар | F2: молоко | G2: хлеб пшеничный | H2: творог | I2: сметана | J2: сыр | K2: чай | L2: манка | M2: капуста | N2: морковь | O2: лук | P2: п/м | Q2: курица | R2: гречка | S2: рыба | T2: сосиска | U2: с/ф | V2: хлеб ржаной | W2: сок | X2: выпечка договор | Y2: яблоко | Z2: пшено | AA2: горох | AB2: картофель | AC2: макароны | AD2: говядина | AE2: яйцо | AF2: груша | AG2: свекла | AH2: кр.пшеничная | AI2: апельсин | AJ2: кекс
A4: 21 | B4: 0.525 | C4: 0.212 | D4: 0.37 | E4: 0.983 | F4: 2.1 | G4: 3.21 | H4: 0.3 | I4: 0.03 | J4: 0.17 | K4: 0.042 | L4: 0.09 | M4: 2.0906 | N4: 1.088 | O4: 0.44 | P4: 0.385 | Q4: 1.732 | R4: 0.465 | S4: 0.254 | T4: 0.45 | U4: 0.38 | V4: 1.68 | W4: 4.2 | X4: 16 | Y4: 2.6 | Z4: 0.23 | AA4: 0.3 | AB4: 2.6 | AC4: 0.38 | AD4: 1.434 | AE4: 0.03 | AF4: 1.2 | AG4: 1.114 | AH4: 0.18 | AI4: 0.4 | AJ4: 0.375
A6: 18 | B6: 0.375 | C6: 0.17 | D6: 0.3 | E6: 0.788 | F6: 1.7 | G6: 2.6 | H6: 0.25 | I6: 0.025 | J6: 0.14 | K6: 0.034 | L6: 0.045 | M6: 1.7066 | N6: 0.905 | O6: 0.365 | P6: 0.31 | Q6: 1.33 | R6: 0.373 | S6: 0.254 | T6: 0.35 | U6: 0.3 | V6: 1.36 | W6: 3.4 | X6: 13 | Y6: 2.2 | Z6: 0.23 | AA6: 0.25 | AB6: 2.133 | AC6: 0.325 | AD6: 1.151 | AE6: 0.025 | AF6: 1 | AG6: 0.83 | AH6: 0.135 | AI6: 0.2 | AJ6: 0.3
A8: 100

Sheet Лист3
E2: 10
C3: рис | D3: 0.525 | E3: =SUM(D3*E2) -> 5.25
C4: соль | D4: 0.212
C5: с/м | D5: 0.37
C6: сахар | D6: 0.983
C7: молоко | D7: 2.1
C8: хлеб пшенич | D8: 3.21
C9: творог | D9: 0.3
C10: сметана | D10: 0.03
C11: сыр | D11: 0.17
C12: чай | D12: 0.042
C13: манка | D13: 0.09
C14: капуста | D14: 2.09
C15: морковь | D15: 1.088
